bitfinex/quotes_BTCUSD_20250212
["timestamp","ask_amount","ask_price","bid_price","bid_amount"]
[1739364598092,0.001,96295.0,96291.0,0.155777]
[1739364598243,0.001,96295.0,96292.0,0.00022386]
[1739364598438,0.207687,96299.0,96292.0,0.00022386]
[1739364598648,0.155769,96297.0,96292.0,0.00022386]
[1739364598860,0.001,96296.0,96292.0,0.00022386]
[1739364599064,0.155771,96295.0,96292.0,0.00022386]
[1739364599464,0.155774,96293.0,96292.0,0.00022386]
[1739364600048,0.155772,96295.0,96292.0,0.00022386]
[1739364600231,0.155771,96295.0,96292.0,0.00022386]
[1739364600448,0.207689,96298.0,96292.0,0.00022386]
[1739364600701,0.155768,96297.0,96292.0,0.00022386]
[1739364601128,0.001,96295.0,96292.0,0.00022386]
[1739364601381,0.001,96295.0,96292.0,0.00122386]
[1739364601592,0.2077916,96300.0,96292.0,0.00122386]
[1739364601593,0.0001066,96300.0,96296.0,0.155768]
[1739364602091,0.001,96297.0,96296.0,0.155768]
[1739364602499,0.001,96297.0,96292.0,0.00022386]
[1739364602500,0.0001066,96300.0,96292.0,0.00122386]
[1739364602700,0.1568706,96300.0,96293.0,0.155774]
[1739364602900,0.1568706,96300.0,96292.0,0.20892386]
[1739364603105,0.1568706,96300.0,96292.0,0.20792386]
[1739364603470,0.1568706,96300.0,96293.0,0.155774]
[1739364603741,0.1568706,96300.0,96294.0,0.155772]
[1739364603911,0.155765,96299.0,96294.0,0.155772]
[1739364604667,0.155765,96299.0,96293.0,0.155774]
[1739364604864,0.155772,96295.0,96292.0,0.00022386]
[1739364605633,0.155772,96295.0,96294.0,0.001]
[1739364605834,0.155769,96296.0,96292.0,0.00022386]
[1739364606072,0.001,96295.0,96292.0,0.15599986]
[1739364606274,0.001,96295.0,96292.0,0.15699986]
[1739364606404,0.001,96295.0,96292.0,0.15599986]
[1739364606746,0.001,96295.0,96294.0,0.001]
[1739364607089,0.001,96295.0,96294.0,0.156772]
[1739364607292,0.0001066,96300.0,96295.0,0.155771]
[1739364607508,0.1558696,96300.0,96295.0,0.155771]
[1739364608185,0.0001066,96300.0,96297.0,0.155767]
[1739364608367,0.0001066,96300.0,96295.0,0.155771]
[1739364608598,0.0011066,96300.0,96295.0,0.155771]
[1739364608779,0.0011066,96300.0,96296.0,0.155769]
[1739364608912,0.0001066,96300.0,96293.0,0.207699]
[1739364609124,0.0001066,96300.0,96294.0,0.155772]
[1739364609343,0.0001066,96300.0,96293.0,0.207699]
[1739364609525,0.0001066,96300.0,96295.0,0.155771]
[1739364610393,0.0011066,96300.0,96295.0,0.155771]
[1739364610792,0.0011066,96300.0,96292.0,0.00022386]
[1739364610931,0.0001066,96300.0,96292.0,0.00022386]
[1739364611144,0.0011066,96300.0,96292.0,0.00022386]
[1739364611428,0.00059764,96300.0,96294.0,0.155771]
[1739364611669,0.0001066,96301.0,96293.0,0.207699]
[1739364611922,0.1558676,96301.0,96295.0,0.155771]
[1739364612410,0.001,96300.0,96294.0,0.155772]
[1739364613104,0.001,96300.0,96293.0,0.207699]
[1739364613364,0.001,96300.0,96294.0,0.155772]
[1739364614451,0.1558676,96301.0,96294.0,0.155772]
[1739364614660,0.1568676,96301.0,96294.0,0.155771]
[1739364614862,0.155763,96300.0,96294.0,0.155771]
[1739364615041,0.0001066,96301.0,96292.0,0.00022386]
[1739364615246,0.0001066,96301.0,96296.0,0.155768]
[1739364615514,0.001,96300.0,96296.0,0.155768]
[1739364615962,0.0001066,96301.0,96296.0,0.155768]
[1739364616331,0.0011066,96301.0,96296.0,0.155768]
[1739364616574,0.0011066,96301.0,96293.0,0.207699]
[1739364616801,0.1568676,96301.0,96295.0,0.15577]
[1739364617083,0.0011066,96301.0,96297.0,0.155767]
[1739364617337,0.0011066,96301.0,96298.0,0.155766]
[1739364617575,0.0001066,96301.0,96298.0,0.155766]
[1739364618058,0.001,96300.0,96298.0,0.155766]
[1739364618286,0.001,96300.0,96297.0,0.155767]
[1739364618491,0.0001066,96301.0,96294.0,0.155771]
[1739364618685,0.155764,96300.0,96293.0,0.155774]
[1739364619407,0.156764,96300.0,96293.0,0.155774]
[1739364619846,0.001,96300.0,96294.0,0.155772]
[1739364620064,0.156763,96300.0,96292.0,0.15599786]
[1739364620278,0.001,96300.0,96292.0,0.00022386]
[1739364620539,0.155765,96299.0,96292.0,0.00022386]
[1739364620910,0.156763,96300.0,96292.0,0.15599786]
[1739364621393,0.155763,96300.0,96292.0,0.15599786]
[1739364621805,0.001,96299.0,96293.0,0.155774]
[1739364622242,0.1558676,96301.0,96293.0,0.155774]
[1739364622752,0.001,96300.0,96299.0,0.155764]
[1739364623216,0.001,96300.0,96299.0,0.15680227]
[1739364623440,0.001,96300.0,96299.0,0.155764]
[1739364623884,0.0001066,96301.0,96297.0,0.207688]
[1739364624123,0.0001066,96301.0,96300.0,0.155763]
[1739364625467,0.0011066,96301.0,96300.0,0.156763]
[1739364625669,0.0011066,96301.0,96300.0,0.155763]
[1739364625819,0.0011066,96301.0,96298.0,0.207687]
[1739364626019,0.0001066,96301.0,96298.0,0.207687]
[1739364626242,0.0001066,96301.0,96300.0,0.155763]
[1739364626449,0.0011066,96301.0,96300.0,0.155763]
[1739364627201,0.0011066,96301.0,96300.0,0.156763]
[1739364627554,0.0011066,96301.0,96300.0,0.155763]
[1739364627757,0.0001066,96301.0,96300.0,0.156763]
[1739364627965,0.0011066,96301.0,96300.0,0.001]
[1739364628502,0.0001066,96301.0,96300.0,0.001]
[1739364628853,0.0011066,96301.0,96300.0,0.001]
[1739364629283,0.0001066,96301.0,96300.0,0.156763]
[1739364629688,0.0011066,96301.0,96300.0,0.156763]
[1739364630151,0.0011066,96301.0,96300.0,0.155763]
[1739364630332,0.0011066,96301.0,96300.0,0.156763]
[1739364630738,0.0001066,96301.0,96298.0,0.207687]
[1739364630918,0.0001066,96301.0,96300.0,0.001]
[1739364631264,0.0011066,96301.0,96300.0,0.001]
[1739364631577,0.0001066,96301.0,96300.0,0.156763]
[1739364631747,0.15575,96309.0,96301.0,0.15576]
[1739364632329,0.15575,96308.0,96301.0,0.15576]
[1739364632536,0.15575,96308.0,96300.0,0.01094389]
[1739364632736,0.001,96301.0,96300.0,0.16612272]
[1739364632961,0.001,96301.0,96300.0,0.15734517]
[1739364633138,0.001,96301.0,96300.0,0.16574717]
[1739364633335,0.001,96301.0,96300.0,0.00998517]
[1739364633955,0.155755,96305.0,96300.0,0.01098517]
[1739364634168,0.155755,96305.0,96300.0,0.00998517]
[1739364634382,0.155755,96305.0,96300.0,0.01020903]
[1739364634576,0.0001066,96301.0,96300.0,0.01120903]
[1739364634743,0.0001066,96301.0,96300.0,0.01020903]
[1739364634949,0.0011066,96301.0,96300.0,0.01020903]
[1739364635869,0.0011066,96301.0,96300.0,0.00058317]
[1739364636111,0.0011066,96301.0,96300.0,0.00846676]
[1739364636314,0.0011066,96301.0,96298.0,0.155764]
[1739364636513,0.0011066,96301.0,96296.0,0.207691]
[1739364636514,0.0011066,96301.0,96300.0,0.00043738]
[1739364636730,0.0011066,96301.0,96300.0,0.001]
[1739364636979,0.0011066,96301.0,96300.0,0.00143738]
[1739364637153,0.0001066,96301.0,96300.0,0.15720038]
[1739364637549,0.0011066,96301.0,96300.0,0.15720038]
[1739364637757,0.0011066,96301.0,96300.0,0.00143738]
[1739364637932,0.0001066,96301.0,96300.0,0.00143738]
[1739364638142,0.0011066,96301.0,96300.0,0.00143738]
[1739364638913,0.0011066,96301.0,96300.0,0.15720038]
[1739364640504,0.0011066,96301.0,96300.0,0.00143738]
[1739364640853,0.0011066,96301.0,96300.0,0.00032804]
[1739364641251,0.0011066,96301.0,96296.0,0.155768]
[1739364641474,0.0011066,96301.0,96300.0,0.00032804]
[1739364641747,0.0011066,96301.0,96296.0,0.155768]
[1739364641959,0.0011066,96301.0,96294.0,0.21308858]
[1739364641960,0.0011066,96301.0,96297.0,0.155766]
[1739364642168,0.0011066,96301.0,96295.0,0.155769]
[1739364642526,0.0011066,96301.0,96297.0,0.155766]
[1739364643025,0.0001066,96301.0,96297.0,0.155766]
[1739364643384,0.0011066,96301.0,96295.0,0.207694]
[1739364643817,0.0001066,96301.0,96296.0,0.155769]
[1739364644416,0.0001066,96301.0,96294.0,0.00539258]
[1739364644648,0.0001066,96301.0,96296.0,0.155769]
[1739364644958,0.0011066,96301.0,96296.0,0.155769]
[1739364645139,0.0011066,96301.0,96294.0,0.00539258]
[1739364645140,0.0011066,96301.0,96297.0,0.155767]
[1739364645841,0.0011066,96301.0,96296.0,0.155769]
[1739364646228,0.0001066,96301.0,96294.0,0.16116358]
[1739364646424,0.0001066,96301.0,96297.0,0.00022386]
[1739364646665,0.0011066,96301.0,96297.0,0.00022386]
[1739364647350,0.0001066,96301.0,96297.0,0.00022386]
[1739364647547,0.0011066,96301.0,96297.0,0.00022386]
[1739364647767,0.0011066,96301.0,96297.0,0.15599086]
[1739364648197,0.0011066,96301.0,96297.0,0.00022386]
[1739364649370,8.391e-05,96301.0,96297.0,0.00022386]
[1739364649601,0.15584491,96301.0,96297.0,0.00022386]
[1739364650010,0.155763,96300.0,96297.0,0.00022386]
[1739364650210,0.155766,96298.0,96297.0,0.00022386]
[1739364650549,0.234466,96298.0,96297.0,0.00022386]
[1739364650922,0.155781,96289.0,96288.0,6.68813178]
[1739364651253,0.155781,96289.0,96288.0,6.69605966]
[1739364652989,0.001,96289.0,96288.0,6.69805966]
[1739364653334,0.156781,96289.0,96288.0,6.69805966]
[1739364655809,0.156781,96289.0,96288.0,6.57305966]
[1739364656145,0.155781,96289.0,96288.0,6.57105966]
[1739364656392,0.238081,96289.0,96288.0,6.57105966]
[1739364656570,0.239081,96289.0,96288.0,6.57205966]
[1739364657006,0.26014198,96289.0,96288.0,6.57205966]
[1739364657422,0.25914198,96289.0,96288.0,6.57105966]
[1739364658888,0.25914198,96289.0,96288.0,6.57205966]
[1739364660852,0.25914198,96289.0,96288.0,6.44705966]
[1739364663070,0.25914198,96289.0,96288.0,6.44605966]
[1739364663297,0.25914198,96289.0,96288.0,6.44705966]
[1739364663631,0.26014198,96289.0,96288.0,6.44705966]
[1739364664678,0.25914198,96289.0,96288.0,6.44705966]
[1739364664819,0.26114198,96289.0,96288.0,6.44705966]
[1739364665173,0.28058053,96289.0,96288.0,6.44605966]
[1739364665378,0.28258053,96289.0,96288.0,6.44605966]
[1739364665869,0.28058053,96289.0,96288.0,6.32105966]
[1739364666228,0.28258053,96289.0,96288.0,6.32105966]
[1739364666645,0.28058053,96289.0,96288.0,6.32105966]
[1739364666845,0.28258053,96289.0,96288.0,6.32105966]
[1739364668551,0.20028053,96289.0,96288.0,6.32105966]
[1739364669668,0.19828053,96289.0,96288.0,6.32105966]
[1739364670070,0.20028053,96289.0,96288.0,6.32105966]
[1739364670681,0.19828053,96289.0,96288.0,6.19605966]
[1739364670891,0.02143855,96289.0,96288.0,6.19605966]
[1739364671101,0.02366242,96289.0,96288.0,6.19605966]
[1739364671582,0.02166242,96289.0,96288.0,6.19605966]
[1739364672067,0.02366242,96289.0,96288.0,6.19605966]
[1739364672445,0.1761711,96289.0,96288.0,6.19605966]
[1739364672641,0.15600487,96289.0,96288.0,6.19705966]
[1739364673626,0.15600487,96289.0,96288.0,6.19605966]
[1739364674180,0.15700487,96289.0,96288.0,6.19605966]
[1739364674987,0.15800487,96289.0,96288.0,6.19605966]
[1739364676426,0.15700487,96289.0,96288.0,6.07105966]
[1739364676837,0.15800487,96289.0,96288.0,6.07105966]
[1739364677077,0.15700487,96289.0,96288.0,6.07105966]
[1739364677253,0.00222387,96289.0,96288.0,6.07105966]
[1739364677810,0.15800487,96289.0,96288.0,6.07105966]
[1739364678655,0.00222387,96289.0,96288.0,6.07105966]
[1739364680725,0.00222387,96289.0,96288.0,5.94605966]
[1739364681655,0.00122387,96289.0,96288.0,5.94605966]
[1739364681795,0.00122387,96289.0,96288.0,5.94705966]
[1739364682003,0.00022387,96289.0,96288.0,5.94705966]
[1739364682453,0.00122387,96289.0,96288.0,5.94705966]
[1739364683028,0.00122387,96289.0,96288.0,6.10284166]
[1739364684175,0.15495213,96299.0,96292.0,0.155776]
[1739364684470,0.1558696,96301.0,96289.0,0.207707]
[1739364684701,0.35357172,96300.0,96294.0,0.155772]
[1739364684877,0.25826665,96300.0,96294.0,0.155772]
[1739364685056,0.25826665,96300.0,96295.0,0.0087423]
[1739364685403,0.007,96299.0,96295.0,0.0087423]
[1739364685605,0.011,96299.0,96295.0,0.0087423]
[1739364685836,0.27921986,96300.0,96288.0,5.93813178]
[1739364686220,0.37452493,96300.0,96294.0,0.155772]
[1739364686371,0.27921986,96300.0,96294.0,0.155772]
[1739364686572,0.28321986,96300.0,96295.0,0.00728525]
[1739364686775,0.13545586,96300.0,96295.0,0.00728525]
[1739364686959,0.13145586,96300.0,96295.0,0.00728525]
[1739364687206,0.12545586,96300.0,96295.0,0.00728525]
[1739364687406,0.28121986,96300.0,96295.0,0.00728525]
[1739364687607,0.007,96299.0,96295.0,0.00728525]
[1739364687808,0.007,96299.0,96294.0,0.155772]
[1739364688013,0.155765,96299.0,96295.0,0.00728525]
[1739364688405,0.12645586,96300.0,96293.0,0.155774]
[1739364688606,0.155765,96299.0,96291.0,0.155776]
[1739364689048,0.155765,96299.0,96289.0,0.207708]
[1739364689233,0.164765,96299.0,96292.0,0.16306167]
[1739364689478,0.164765,96299.0,96292.0,0.155775]
[1739364689630,0.164765,96299.0,96293.0,0.0072862]
[1739364689829,0.009,96299.0,96293.0,0.0072862]
[1739364690035,0.155769,96297.0,96290.0,0.155779]
[1739364690241,0.155769,96297.0,96291.0,0.00728714]
[1739364690436,0.155769,96297.0,96291.0,0.155777]
[1739364690640,0.155766,96299.0,96293.0,0.155774]
[1739364690985,0.164766,96299.0,96294.0,0.00728573]
[1739364691182,0.158766,96299.0,96294.0,0.00728573]
[1739364691337,0.158766,96299.0,96291.0,0.155777]
[1739364691543,0.004,96297.0,96295.0,0.00728525]
[1739364691763,0.004,96297.0,96289.0,0.207708]
[1739364691964,0.003,96299.0,96296.0,0.00728478]
[1739364692195,0.003,96299.0,96288.0,5.93813178]
[1739364692347,0.006,96299.0,96297.0,0.00728431]
[1739364692549,0.006,96299.0,96294.0,0.155772]
[1739364693106,0.003,96297.0,96295.0,0.00728525]
[1739364693316,0.003,96297.0,96296.0,0.155769]
[1739364693507,0.009,96299.0,96298.0,0.155766]
[1739364693508,0.0001066,96299.0,96298.0,0.155766]
[1739364693713,0.0001066,96299.0,96298.0,0.15680429]
[1739364693973,0.0091066,96299.0,96298.0,0.16405744]
[1739364694179,0.0061066,96299.0,96298.0,0.16405744]
[1739364694388,0.0001066,96299.0,96298.0,0.16405744]
[1739364694632,0.0011066,96299.0,96298.0,0.16405744]
[1739364694836,0.0001066,96320.0,96299.0,0.207684]
[1739364694990,0.0001066,96320.0,96314.0,0.15574]
[1739364695196,0.02084028,96320.0,96315.0,0.155738]
[1739364695538,0.02084028,96320.0,96316.0,0.155737]
[1739364695739,0.02084028,96320.0,96316.0,0.00726319]
[1739364695947,0.02084028,96320.0,96317.0,0.00605219]
[1739364696244,0.0061066,96319.0,96315.0,0.155738]
[1739364696400,0.0001066,96319.0,96318.0,0.00605171]
[1739364696610,0.0031066,96319.0,96315.0,0.155738]
[1739364696808,0.0031066,96319.0,96318.0,0.00605171]
[1739364697029,0.0131066,96319.0,96316.0,0.155737]
[1739364697235,0.0131066,96319.0,96318.0,0.00605171]
[1739364697236,0.0161066,96319.0,96318.0,0.00605171]
[1739364697386,0.0031066,96319.0,96317.0,0.00605219]
[1739364697586,0.0031066,96319.0,96318.0,0.00605171]
[1739364697790,0.0091066,96319.0,96318.0,0.00605171]
[1739364698034,0.0091066,96319.0,96316.0,0.155737]
[1739364698239,0.0031066,96319.0,96318.0,0.00605171]
[1739364698492,0.0001066,96319.0,96317.0,0.00605219]
[1739364698691,0.0061066,96319.0,96318.0,0.00605171]
[1739364698844,0.0091066,96319.0,96318.0,0.00605171]
[1739364699044,0.0061066,96319.0,96309.0,0.20772358]
[1739364699261,0.1618386,96319.0,96318.0,0.00605171]
[1739364699459,0.1648386,96319.0,96318.0,0.00605171]
[1739364699785,0.0755,96318.0,96309.0,5.958e-05]
[1739364699985,0.207647,96317.0,96309.0,5.958e-05]
[1739364700370,0.155744,96312.0,96309.0,5.958e-05]
[1739364700569,0.155747,96310.0,96309.0,5.958e-05]
[1739364700789,0.155747,96310.0,96301.0,0.20768]
[1739364700991,0.155745,96311.0,96309.0,0.00605595]
[1739364701169,0.155745,96311.0,96304.0,0.155756]
[1739364701364,0.155745,96311.0,96301.0,0.20768]
[1739364701365,0.207654,96314.0,96310.0,0.00605548]
[1739364701597,0.0755,96318.0,96293.0,0.12904415]
[1739364701755,0.155746,96311.0,96309.0,0.002]
[1739364702174,0.155745,96311.0,96310.0,0.00605548]
[1739364702381,0.001,96311.0,96310.0,0.00636195]
[1739364702629,0.207652,96315.0,96309.0,0.002]
[1739364702832,0.155744,96312.0,96310.0,0.00605548]
[1739364703034,0.155743,96313.0,96310.0,0.00636195]
[1739364703235,0.155743,96313.0,96306.0,0.155753]
[1739364703412,0.155743,96313.0,96311.0,0.00605501]
[1739364703617,0.157741,96314.0,96311.0,0.00605501]
[1739364703889,0.155741,96314.0,96306.0,0.155753]
[1739364704105,0.155741,96314.0,96312.0,0.00605454]
[1739364704312,0.001,96313.0,96303.0,0.207676]
[1739364704512,0.001,96313.0,96304.0,0.155756]
[1739364704743,0.207655,96314.0,96303.0,0.207676]
[1739364704942,0.156744,96312.0,96304.0,0.155756]
[1739364705392,0.155744,96312.0,96304.0,0.155756]
[1739364705783,0.155744,96312.0,96303.0,0.207676]
[1739364705995,0.0001066,96311.0,96301.0,0.207681]
[1739364706198,0.0001066,96311.0,96304.0,0.155756]
[1739364706400,0.0001066,96311.0,96299.0,0.207684]
[1739364706604,0.0001066,96311.0,96305.0,0.155755]
[1739364706999,0.0001066,96311.0,96307.0,0.15575]
[1739364707221,0.0001066,96311.0,96310.0,0.155747]
[1739364708394,0.0011066,96311.0,96310.0,0.155747]
[1739364708940,0.0001066,96311.0,96310.0,0.155747]
[1739364709691,0.0011066,96311.0,96310.0,0.156747]
[1739364710855,0.0011066,96311.0,96310.0,0.001]
[1739364711074,0.0011066,96311.0,96310.0,0.16278579]
[1739364711232,0.0011066,96311.0,96310.0,0.156747]
[1739364711439,0.0011066,96311.0,96310.0,0.1627664]
[1739364713803,0.0011066,96311.0,96310.0,0.16307287]
[1739364715299,0.0011066,96311.0,96310.0,0.20837287]
[1739364715457,0.0011066,96311.0,96310.0,0.39371477]
[1739364715675,0.0011066,96311.0,96310.0,0.39267652]
[1739364716080,0.0011066,96311.0,96310.0,0.41327094]
[1739364716304,0.0011066,96311.0,96310.0,0.41227094]
[1739364716643,0.0011066,96311.0,96310.0,0.41327094]
[1739364717072,0.0011066,96311.0,96310.0,0.56227094]
[1739364717277,0.0001066,96311.0,96310.0,0.56227094]
[1739364717563,0.0011066,96311.0,96310.0,0.56527094]
[1739364717921,0.0011066,96311.0,96310.0,0.56427094]
[1739364718153,0.0021066,96311.0,96310.0,0.56527094]
[1739364718907,0.0011066,96311.0,96310.0,0.56327094]
[1739364719321,0.0011066,96311.0,96310.0,0.59027094]
[1739364719728,0.0021066,96311.0,96310.0,0.59027094]
[1739364720204,0.0021066,96311.0,96310.0,0.56727094]
[1739364721342,0.0011066,96311.0,96310.0,0.56627094]
[1739364721778,0.0021066,96311.0,96310.0,0.56727094]
[1739364722087,0.0011066,96311.0,96310.0,0.56327094]
[1739364722285,0.0011066,96311.0,96310.0,0.56627094]
[1739364722446,0.0031066,96311.0,96310.0,0.56627094]
[1739364722830,0.0011066,96311.0,96310.0,0.56327094]
[1739364723393,0.0031066,96311.0,96310.0,0.56627094]
[1739364726826,0.0011066,96311.0,96310.0,0.56327094]
[1739364727047,0.0031066,96311.0,96310.0,0.56627094]
[1739364727246,0.0031066,96311.0,96310.0,0.57379094]
[1739364728379,0.0011066,96311.0,96310.0,0.57079094]
[1739364728583,0.0031066,96311.0,96310.0,0.57379094]
[1739364729708,0.0011066,96311.0,96310.0,0.57079094]
[1739364730136,0.0031066,96311.0,96310.0,0.57379094]
[1739364731041,0.0031066,96311.0,96310.0,0.56627094]
[1739364731250,0.0021066,96311.0,96310.0,0.56527094]
[1739364731448,0.0011066,96311.0,96310.0,0.56327094]
[1739364731859,0.0031066,96311.0,96310.0,0.56649459]
[1739364732267,0.0021066,96311.0,96310.0,0.56549459]
[1739364732394,0.0001066,96311.0,96310.0,0.56249459]
[1739364732608,0.0031066,96311.0,96310.0,0.48469459]
[1739364733017,0.0011066,96311.0,96310.0,0.48169459]
[1739364733476,0.0031066,96311.0,96310.0,0.48469459]
[1739364734202,0.0021066,96311.0,96310.0,0.48369459]
[1739364734955,0.0031066,96311.0,96310.0,0.48469459]
[1739364735173,0.0021066,96311.0,96310.0,0.48269459]
[1739364735655,0.0041066,96311.0,96310.0,0.48569459]
[1739364737425,0.0021066,96311.0,96310.0,0.48369459]
[1739364738222,0.0001066,96311.0,96310.0,0.48069459]
[1739364738666,0.0001066,96311.0,96310.0,0.48469459]
[1739364738667,0.0021066,96311.0,96310.0,0.48469459]
[1739364738870,0.0031066,96311.0,96310.0,0.48469459]
[1739364739074,0.0011066,96311.0,96310.0,0.48069459]
[1739364739275,0.0011066,96311.0,96310.0,0.48169459]
[1739364739472,0.0021066,96311.0,96310.0,0.48469459]
[1739364740016,0.0011066,96311.0,96310.0,0.48169459]
[1739364740182,0.0031066,96311.0,96310.0,0.58879459]
[1739364740533,0.0021066,96311.0,96310.0,0.58879459]
[1739364740712,0.0021066,96311.0,96310.0,0.58779459]
[1739364741474,0.0031066,96311.0,96310.0,0.58879459]
[1739364742066,0.0041066,96311.0,96310.0,0.58979459]
[1739364743081,0.0041066,96311.0,96310.0,0.91429459]
[1739364743281,0.0031066,96311.0,96310.0,0.91429459]
[1739364743681,0.0031066,96311.0,96310.0,0.81019459]
[1739364743883,0.0031066,96311.0,96310.0,0.81771459]
[1739364744094,0.0011066,96311.0,96310.0,0.81571459]
[1739364744652,0.0001066,96311.0,96310.0,0.76741459]
[1739364744806,0.0011066,96311.0,96310.0,0.78341459]
[1739364745211,0.0011066,96311.0,96310.0,0.77189459]
[1739364745415,0.0001066,96311.0,96310.0,0.75989459]
[1739364745614,0.0001066,96311.0,96310.0,0.77389459]
[1739364745827,0.0011066,96311.0,96310.0,0.77389459]
[1739364746219,0.0001066,96311.0,96310.0,0.76389459]
[1739364746448,0.0011066,96311.0,96310.0,0.77289459]
[1739364747228,0.01858656,96334.0,96311.0,0.15]
[1739364747463,0.155714,96331.0,96313.0,0.15]
[1739364747773,0.155714,96331.0,96324.0,0.155724]
[1739364748427,0.155714,96331.0,96322.0,0.155727]
[1739364748632,0.155714,96331.0,96323.0,0.155726]
[1739364748788,0.155714,96331.0,96319.0,0.207643]
[1739364748789,0.008,96331.0,96319.0,0.207643]
[1739364748988,0.008,96331.0,96323.0,0.155725]
[1739364749168,0.163713,96331.0,96323.0,0.155725]
[1739364749373,0.158713,96331.0,96323.0,0.155725]
[1739364750100,0.003,96331.0,96311.0,0.15]
[1739364750311,0.0805,96327.0,96321.0,0.155729]
[1739364750892,0.0805,96327.0,96320.0,0.155729]
[1739364751340,0.0805,96327.0,96306.0,0.15]
[1739364751341,0.0805,96327.0,96321.0,0.15601176]
[1739364751817,0.0815,96327.0,96321.0,0.15601176]
[1739364752048,0.0815,96327.0,96321.0,0.00028276]
[1739364752254,0.0825,96327.0,96321.0,0.15601076]
[1739364752371,0.0845,96327.0,96321.0,0.155728]
[1739364752788,0.0845,96327.0,96322.0,0.155727]
[1739364752986,0.0845,96327.0,96312.0,0.00592567]
[1739364753210,0.0845,96327.0,96324.0,0.155724]
[1739364753469,0.0825,96327.0,96324.0,0.155724]
[1739364753921,0.0815,96327.0,96324.0,0.155724]
[1739364754134,0.0825,96327.0,96313.0,0.0003]
[1739364754350,0.0825,96327.0,96322.0,0.155727]
[1739364754574,0.0805,96327.0,96322.0,0.155727]
[1739364754812,0.0805,96327.0,96323.0,0.00027845]
[1739364755032,0.0826065,96327.0,96323.0,0.00027845]
[1739364755270,0.0816065,96327.0,96323.0,0.00027845]
[1739364755502,0.0826065,96327.0,96321.0,0.15595265]
[1739364755749,0.0826065,96327.0,96319.0,0.207642]
[1739364756208,0.0846065,96327.0,96320.0,0.1616519]
[1739364756617,0.0826065,96327.0,96320.0,0.1616519]
[1739364756860,0.0806065,96327.0,96320.0,0.1616519]
[1739364757170,0.0836065,96327.0,96320.0,0.1616519]
[1739364757380,0.0836065,96327.0,96320.0,0.0059219]
[1739364757594,0.155728,96322.0,96320.0,0.0059219]
[1739364757797,0.0826065,96327.0,96321.0,0.00592587]
[1739364758005,0.155729,96322.0,96312.0,0.155743]
[1739364758182,0.155731,96320.0,96313.0,0.00592964]
[1739364758376,0.155732,96319.0,96310.0,0.15597065]
[1739364758556,0.155732,96319.0,96311.0,0.00030432]
[1739364758757,0.155732,96319.0,96311.0,0.0062349]
[1739364759345,0.155734,96318.0,96311.0,0.0062349]
[1739364760049,0.15514199,96318.0,96311.0,0.0062349]
[1739364760249,0.15514199,96318.0,96313.0,0.001]
[1739364760504,0.20764,96321.0,96311.0,0.0062349]
[1739364760660,0.17419217,96319.0,96311.0,0.0062349]
[1739364760864,0.001,96318.0,96311.0,0.0062349]
[1739364761099,0.155732,96319.0,96311.0,0.0062349]
[1739364761318,0.002,96318.0,96311.0,0.0062349]
[1739364761538,0.003,96318.0,96311.0,0.0062349]
[1739364761912,0.001,96318.0,96311.0,0.0062349]
[1739364762318,0.001,96318.0,96311.0,0.1619789]
[1739364762532,0.001,96318.0,96312.0,0.155743]
[1739364762883,0.001,96318.0,96313.0,0.0003]
[1739364763093,0.001,96318.0,96314.0,0.15574]
[1739364763474,0.001,96318.0,96315.0,0.15603369]
[1739364763904,0.001,96318.0,96315.0,0.00029569]
[1739364764072,0.001,96318.0,96316.0,0.155736]
[1739364764276,0.002,96318.0,96316.0,0.155736]
[1739364764477,0.01850646,96321.0,96317.0,0.00654524]
[1739364764829,0.155721,96326.0,96318.0,0.155733]
[1739364765399,0.001,96318.0,96317.0,0.00654524]
[1739364765800,0.001,96318.0,96317.0,0.16228024]
[1739364767455,0.09961867,96327.0,96317.0,0.00676889]
[1739364767587,0.155721,96326.0,96318.0,0.155733]
[1739364767827,0.09961867,96327.0,96319.0,0.15601807]
[1739364768034,0.25533967,96327.0,96319.0,0.15601807]
[1739364768529,0.25533967,96327.0,96319.0,0.155731]
[1739364768741,0.25933967,96327.0,96320.0,0.00625245]
[1739364769161,0.25533967,96327.0,96320.0,0.00625245]
[1739364769559,0.155722,96326.0,96320.0,0.00625245]
[1739364769737,0.155724,96324.0,96317.0,0.00022365]
[1739364769942,0.155724,96324.0,96318.0,0.00625339]
[1739364770139,0.155722,96326.0,96318.0,0.16198639]
[1739364770404,0.162722,96326.0,96318.0,0.16298639]
[1739364770765,0.10261867,96327.0,96318.0,0.00625339]
[1739364770966,0.02211867,96327.0,96322.0,0.155726]
[1739364771168,0.02211867,96327.0,96323.0,0.00625916]
[1739364771469,0.003,96326.0,96324.0,0.00027629]
[1739364771671,0.01911867,96327.0,96324.0,0.00027629]
[1739364771875,0.01911867,96327.0,96324.0,0.15599929]
[1739364772076,0.02211867,96327.0,96324.0,0.00027629]
[1739364772424,0.02211867,96327.0,96324.0,0.15600029]
[1739364772711,0.003,96326.0,96324.0,0.15600029]
[1739364772952,0.01,96326.0,96324.0,0.15600029]
[1739364773268,0.003,96326.0,96324.0,0.15600029]
[1739364773714,0.003,96326.0,96324.0,0.15700029]
[1739364773919,0.0061065,96327.0,96325.0,0.155721]
[1739364774149,0.0031065,96327.0,96325.0,0.155721]
[1739364774535,0.005,96326.0,96325.0,0.155721]
[1739364774753,0.008,96326.0,96325.0,0.155721]
[1739364775060,0.008,96326.0,96325.0,0.15599514]
[1739364775773,0.008,96326.0,96325.0,0.00027414]
[1739364775989,0.003,96326.0,96325.0,0.15599514]
[1739364776218,0.0001065,96327.0,96323.0,0.00625916]
[1739364776418,0.0061065,96327.0,96325.0,0.00723914]
[1739364776595,0.0061065,96327.0,96325.0,0.001]
[1739364776798,0.1558255,96327.0,96326.0,0.00622923]
[1739364777004,0.0001065,96327.0,96317.0,0.00022365]
[1739364777155,0.005,96326.0,96318.0,0.16196585]
[1739364777362,0.005,96326.0,96318.0,0.00623285]
[1739364777566,0.155722,96326.0,96317.0,0.00022365]
[1739364777769,0.155722,96326.0,96325.0,0.001]
[1739364778007,0.158722,96326.0,96325.0,0.001]
[1739364778401,0.155722,96326.0,96325.0,0.001]
[1739364778645,0.158722,96326.0,96325.0,0.001]
[1739364779289,0.1588285,96326.0,96317.0,0.00022365]
[1739364779492,0.0051065,96326.0,96317.0,0.15595865]